Cogmind - Beta 10.2 @@@ ROGUE MODE // 2021.07.13 @ 07:44:28 Player: Sifan Result: Destroyed by Y-45 Defender with Beam Rifle Performance ------------- Evolutions (1) 500 Regions Visited (3) 600 Robots Destroyed (32) 160 Value Destroyed (679) 679 Prototype IDs (0) 0 Alien Tech Used (0) 0 Bonus (150) 150 TOTAL SCORE: 2089 Bonus ------- Follower Combat Kills 150 Cogmind --------- Core Integrity 0/400 Matter 300/300 Energy 100/100 System Corruption 2% Temperature Cool (9) Movement Core (550) Ox10 Location -9/Materials Parts ------- > --- POWER (1) -------- (None) > --- PROPULSION (2) --- (None) > --- UTILITY (3) ------ High-capacity Storage Unit > --- WEAPON (3) ------- (None) > --- INVENTORY (12) --- Ion Engine Light Ion Engine Aluminum Leg Aluminum Leg Aluminum Leg Signal Interpreter Terrain Scan Processor Field Recycling Unit (0) Peak State ------------ > --- POWER ------------ Improved Ion Engine > --- PROPULSION ------- Carbon-fiber Leg Carbon-fiber Leg > --- UTILITY ---------- High-capacity Storage Unit Terrain Scanner Shock Absorption System > --- WEAPON ----------- Particle Cannon Assault Rifle Light Assault Rifle > --- INVENTORY -------- Ion Engine Light Ion Engine Aluminum Leg Aluminum Leg Carbon-fiber Leg Signal Interpreter Terrain Scan Processor Field Recycling Unit [Rating: 19] Favorites ----------- Power Ion Engine Engine Ion Engine Propulsion Light Treads Treads Light Treads Leg Aluminum Leg Utility High-capacity Storage Unit Device Sensor Array Storage High-capacity Storage Unit Weapon EM Pulse Gun Energy Gun EM Pulse Gun Energy Cannon Particle Cannon Ballistic Gun Assault Rifle Build | -11 -10 -10 -9 ------- Run | Scr Mat Min Mat Slots Evolved 2 | . . . 2 Power . | . . . . Propulsion . | . . . . Utility 1 | . . . 1 Weapon 1 | . . . 1 Parts Attached 27 | 6 7 7 7 Power 3 | 1 1 . 1 Engine 3 | 1 1 . 1 Core . | . . . . Reactor . | . . . . Propulsion 10 | 2 2 2 4 Treads 2 | 2 . . . Leg 8 | . 2 2 4 Wheel . | . . . . Hover . | . . . . Flight . | . . . . Utility 6 | 1 3 1 1 Device 4 | . 2 1 1 Storage 2 | 1 1 . . Processor . | . . . . Hackware . | . . . . Protection . | . . . . Artifact . | . . . . Weapon 8 | 2 1 4 1 Energy Gun 3 | 2 . 1 . Energy Cannon 2 | . . 2 . Ballistic Gun 3 | . 1 1 1 Ballistic Cannon . | . . . . Launcher . | . . . . Special Weapon . | . . . . Impact Weapon . | . . . . Slashing Weapon . | . . . . Piercing Weapon . | . . . . Special Melee Weapon . | . . . . Unidentified Prototypes . | . . . . Parts Lost 13 | . 1 3 9 Power 1 | . . . 1 Propulsion 3 | . . . 3 Utility 3 | . . 1 2 Weapon 6 | . 1 2 3 Highest Loss Streak 4 | . 1 2 4 Average Slot Usage (%) 94 | . 99 97 75 Engine 13 | . 14 14 9 Treads 14 | . 24 . . Leg 12 | . 3 28 20 Device 13 | . 13 12 15 Storage 13 | . 14 14 11 Energy Gun 16 | . 25 3 . Energy Cannon 5 | . . 19 6 Ballistic Gun 3 | . 2 3 11 Naked Turns . | . . . . Heaviest Build 50 | 13 42 48 50 Greatest Support 40 | 40 40 25 30 Greatest Overweight (x) 4 | 4 2 2 4 Average Overweight (x) 1 | 2 1 1 1 Largest Inventory Capacity 14 | 6 14 12 12 Average Capacity 11 | 5 11 12 12 Most Carried 9 | 4 9 9 9 Average Carried 6 | 1 5 7 6 Final Capacity 12 | 6 12 12 12 Final Carried 9 | 4 9 5 8 Class Distribution -------------------- 86% | Mutant 6% | Scavenger-Mutant 6% | Scavenger-Tank Dominant Class ---------------- Mutant | -10/Materials Mutant | -10/Mines Scavenger-Tank | -9/Materials Resources | -11 -10 -10 -9 ----------- Run | Scr Mat Min Mat Matter Collected 597 | 224 118 118 137 Remotely . | . . . . Salvage Created 1062 | . 562 309 191 Parts 72 | . 41 21 10 Haulers Intercepted . | . . . . Recyclers Shooed 1 | . 1 . . Parts Field Recycled . | . . . . Retrieved Matter . | . . . . Parts Self-Destructed . | . . . . Prevented . | . . . . Kills | -11 -10 -10 -9 ------- Run | Scr Mat Min Mat Combat Hostiles Destroyed 25 | . 8 12 5 Melee 1 | . . . 1 Guns 9 | . 5 3 1 Cannons 12 | . . 9 3 AOE 3 | . 3 . . Classes Destroyed 7 | . 5 1 1 Worker 1 | . 1 . . Builder 2 | . 2 . . Recycler 1 | . 1 . . Watcher 3 | . 3 . . Swarmer 11 | . . 9 2 Grunt 12 | . 8 2 2 Brawler 1 | . . . 1 Best Kill Streak 4 | . 4 3 2 Combat Bots Only 3 | . 3 3 2 Max Kills in Single Turn 2 | . 2 2 1 Gunslinging . | . . . . Exploded 1 | . 1 . . Melee 1 | . . . 1 Uniques/NPCs Destroyed 1 | . . 1 . YI-UF0 (-10/Mines) Combat | -11 -10 -10 -9 -------- Run | Scr Mat Min Mat Damage Taken 1892 | . 313 497 1082 Core 535 | . 50 84 401 Absorbed by Shields . | . . . . Core Remaining (%) 73 | 100 . 46 . Volleys Fired 94 | . 45 26 23 Largest 3 | . 2 2 3 Hottest 136 | . 90 136 108 Shots Fired 197 | . 90 50 57 Gun 142 | . 90 16 36 Cannon 55 | . . 34 21 Launcher . | . . . . Special . | . . . . Kinetic 51 | . 7 8 36 Thermal 93 | . 38 34 21 Explosive . | . . . . Electromagnetic 53 | . 45 8 . Robot Hit Streak 11 | . 11 5 6 Robot Miss Streak 4 | . 3 3 4 Penetration Max . | . . . . Secondary Targets 4 | . 2 2 . Max Gunslinging Chain 1 | . 1 1 . Shots Hit Robots 90 | . 36 21 33 Core Hits 51 | . 23 13 15 Critical Hits . | . . . . Critical Kills . | . . . . Critical Parts Destroyed . | . . . . Melee Attacks . | . . . . Impact . | . . . . Slashing . | . . . . Piercing . | . . . . Sneak Attacks . | . . . . Combat Hostiles . | . . . . Follow-up Attacks . | . . . . Damage Inflicted 1617 | . 647 395 575 Guns 778 | . 504 67 207 Cannons 677 | . . 328 349 Explosions 143 | . 143 . . Melee . | . . . . Ramming 19 | . . . 19 Kinetic 289 | . 49 33 207 Thermal 996 | . 319 328 349 Explosive . | . . . . Electromagnetic 313 | . 279 34 . Impact . | . . . . Slashing . | . . . . Piercing . | . . . . Highest Corruption 2 | . . . 2 Average Corruption 2 | . . . 2 Corruption Purged . | . . . . Overload Shots . | . . . . Overflow Damage 2 | . . 1 1 Projectiles 2 | . . 1 1 Explosions . | . . . . Melee . | . . . . Knockbacks . | . . . . Impact . | . . . . Kinetic . | . . . . Secondary . | . . . . Self-Inflicted Damage 5 | . . . 5 Shots . | . . . . Rammed 10 | . . . 10 Targets Rammed 12 | . . . 12 Kicked 2 | . . . 2 Crushed . | . . . . Highest Temperature 450 | . 322 450 292 Average Temperature 112 | . 105 133 101 Received Heat Transfer 645 | . 174 24 447 Effects 3 | . . 2 1 Energy Bleed 1 | . . . 1 Matter Decay 1 | . . 1 . Damage (minor) 1 | . . 1 . Siege Activations . | . . . . Robots Corrupted . | . . . . Combat Hostiles . | . . . . Parts Fried . | . . . . Impact Corruptions . | . . . . Robots Melted . | . . . . Combat Hostiles . | . . . . Parts Melted 3 | . 2 . 1 Heat Transferred 1989 | . 768 592 629 Parts Sabotaged . | . . . . Parts Stolen . | . . . . Parts Stripped . | . . . . Power Chain Reactions 3 | . 3 . . Missiles Intercepted . | . . . . Alert | -11 -10 -10 -9 ------- Run | Scr Mat Min Mat Peak Influence 274 | . 129 205 274 Initial 35 | . . . 35 Average 80 | . 45 85 212 Maximum Alert Level 1 | . . 1 1 Low Security (%) 84 | 100 100 90 21 Level 1 15 | . . 9 78 Level 2 . | . . . . Level 3 . | . . . . Level 4 . | . . . . Level 5 . | . . . . High Security . | . . . . Max Security . | . . . . Squads Dispatched 4 | . . 1 3 Investigation . | . . . . Extermination . | . . . . Reinforcement 3 | . . . 3 Assault 1 | . . 1 . Garrison . | . . . . Intercept . | . . . . Construction Impeded . | . . . . Haulers Reinforced . | . . . . Stealth | -11 -10 -10 -9 --------- Run | Scr Mat Min Mat Distress Signals 2 | . 1 . 1 Communications Jammed . | . . . . Distress Signals . | . . . . Times Spotted 53 | . 15 18 20 Peak Tracking Total 8 | . 4 4 8 Tactical Retreats 2 | . . 1 1 Traps | -11 -10 -10 -9 ------- Run | Scr Mat Min Mat Traps Triggered 1 | . . . 1 Indirectly . | . . . . Trap Hack Attempts . | . . . . Triggered . | . . . . Disarmed . | . . . . Reprogrammed . | . . . . Reused . | . . . . Traps Extracted . | . . . . Installed . | . . . . Triggered . | . . . . Machines | -11 -10 -10 -9 ---------- Run | Scr Mat Min Mat Machines Disabled 2 | . 1 . 1 Max in Single Turn 1 | . 1 . . Machines Sabotaged . | . . . . Garrisons Compromised . | . . . . Overloaded Fab Kills . | . . . . Fab Network Shutdowns . | . . . . Hacking | -11 -10 -10 -9 --------- Run | Scr Mat Min Mat Machines Accessed 6 | . 5 1 . Terminals 4 | . 3 1 . Fabricators . | . . . . Repair Stations 1 | . 1 . . Recycling Units 1 | . 1 . . Scanalyzers . | . . . . Garrison Access . | . . . . Total Hacks 15 | . 14 1 . Successful 6 | . 6 . . Failed 9 | . 8 1 . Catastrophic 1 | . 1 . . Database Lockouts . | . . . . Manual 4 | . 2 2 . Terminals 12 | . 11 1 . Fabricators . | . . . . Repair Stations 2 | . 2 . . Recycling Units 1 | . 1 . . Scanalyzers . | . . . . Garrison Access . | . . . . Terminal Hacks 4 | . 4 . . Robot Analysis 1 | . 1 . . Alert Level 1 | . 1 . . Dispatch Records 1 | . 1 . . Maintenance Status 1 | . 1 . . Fabricator Hacks . | . . . . Repair Station Hacks 1 | . 1 . . Scan Component 1 | . 1 . . Recycling Unit Hacks 1 | . 1 . . Report Inventory 1 | . 1 . . Scanalyzer . | . . . . Garrison Access Hacks . | . . . . Unauthorized Hacks . | . . . . Terminals . | . . . . Fabricators . | . . . . Repair Stations . | . . . . Recycling Units . | . . . . Scanalyzers . | . . . . Garrison Access . | . . . . Data Cores Recovered . | . . . . Used . | . . . . Hacking Detections 5 | . 4 1 . Full Trace Events . | . . . . Feedback Events . | . . . . Feedback Blocked . | . . . . Robot Schematics Acquired . | . . . . Robots Built . | . . . . Matter . | . . . . Time . | . . . . Total Robot Build Rating . | . . . . Part Schematics Acquired . | . . . . Parts Built . | . . . . Matter . | . . . . Time . | . . . . Total Part Build Rating . | . . . . Parts Repaired . | . . . . Time . | . . . . Parts Recycled . | . . . . Recycled Matter . | . . . . Retrieved Matter . | . . . . Retrieved Components . | . . . . Parts Scanalyzed . | . . . . Part Schematics Acquired . | . . . . Parts Damaged . | . . . . Bothacking | -11 -10 -10 -9 ------------ Run | Scr Mat Min Mat Used RIF Installer . | . . . . Robots Hacked . | . . . . Non-combat . | . . . . Combat . | . . . . Robot Hacks Applied . | . . . . Relay Couplers Released . | . . . . Robots Rewired . | . . . . Allies Hacked . | . . . . Hacks Repelled . | . . . . Allies | -11 -10 -10 -9 -------- Run | Scr Mat Min Mat Total Allies 1 | . . 1 . Largest Group 1 | . . 1 1 Highest-Rated Group 31 | . . 31 31 Highest-Rated Ally 31 | . . 31 31 Total Orders . | . . . . Ally Attacks 18 | . . 7 11 Total Damage 210 | . . 84 126 Kills 6 | . . 2 4 Allies Corrupted . | . . . . Allies Melted . | . . . . Intel | -11 -10 -10 -9 ------- Run | Scr Mat Min Mat Robot Analysis Total 1 | . 1 . . Derelict Logs Recovered 2 | . . 2 . Drone Launches . | . . . . Drone Recoveries . | . . . . Exploration | -11 -10 -10 -9 ------------- Run | Scr Mat Min Mat Turns Passed 2278 | 117 1270 509 382 Spaces Moved 952 | 55 465 263 169 Core 35 | 35 . . . Treads 402 | 20 382 . . Legs 515 | . 83 263 169 Wheels . | . . . . Hover . | . . . . Flight . | . . . . Fastest Speed 50 | 50 160 150 150 Average Speed 169 | 190 178 159 154 Slowest Speed 250 | 250 180 180 240 Overloaded Moves . | . . . . Propulsion Burnouts . | . . . . Robots Hopped . | . . . . Cave-ins Triggered . | . . . . Exploration Rate (%) 33 | 4 59 50 20 Regions Visited 3 Branch Regions 1 Pre-discovered Areas 1 | . . 1 . Known Exits Taken 1 | . . 1 . Unknown Exits Taken 2 | 1 1 . . Scrap Searched 1 | . . 1 . Spaces Dug . | . . . . Terrain Destroyed 11 | . 11 . . Melee . | . . . . Projectile . | . . . . AOE 11 | . 11 . . Terrain Rammed . | . . . . Walls Destroyed . | . . . . Machines Disabled . | . . . . Actions | -11 -10 -10 -9 --------- Run | Scr Mat Min Mat Total 1415 | 64 816 303 232 Wait 311 | . 288 4 19 Move 949 | 54 464 262 169 Hop . | . . . . Pick Up 14 | 4 8 . 2 Fast Attach 10 | 6 2 1 1 Attach 5 | . 1 2 2 Detach . | . . . . Swap 12 | . 4 4 4 Drop 8 | . 4 4 . Fire 94 | . 45 26 23 Melee . | . . . . Ram 2 | . . . 2 Kick 10 | . . . 10 Crush . | . . . . Escape Stasis . | . . . . Rewire . | . . . . Trap . | . . . . Miscellaneous . | . . . . Route ------- -11/Scrapyard -10/Materials (discovered 2 exits: *Mat / *Min) -10/Mines (discovered 2 exits: *Mat x2) -9/Materials History --------- Turn | Location | Event 18 | -11/Scrapyard | Discovered new exit (range 16) 118 | -11/Scrapyard | Entered Materials 304 | -10/Materials | Build established: Mutant 1030 | -10/Materials | Discovered new exit (range 5) 1291 | -10/Materials | Discovered new exit (range 11) 1388 | -10/Materials | Entered Mines 1505 | -10/Mines | Identified exit to Materials 1544 | -10/Mines | Destroyed YI-UF0 1739 | -10/Mines | Core integrity fell below 50% 1766 | -10/Mines | Met a Derelict testing a Signal Generator 1766 | -10/Mines | Discovered exit to Materials (range 5) 1897 | -10/Mines | Entered Materials 1897 | -9/Materials | Accompanied by 1 ally 1897 | -9/Materials | Evolved 2 slots: Utility x1, Weapon x1 2168 | -9/Materials | Lost 4 parts (1u3w) 2266 | -9/Materials | Core integrity fell below 50% 2274 | -9/Materials | Core integrity fell below 20% 2279 | -9/Materials | Destroyed by Y-45 Defender with Beam Rifle Last Messages --------------- 02178_ Carbon-fiber Leg destroyed. 02198_ Acquired 22 matter. 02198_ Terrain Scanner destroyed. 02201_ Slammed into K-01 Serf. 02215_ Acquired 10 matter. 02229_ Imp. Ion Engine destroyed. 02234_ Slammed into B-36 Bruiser. 02251_ K-01 Serf collects debris. 02261_ Slammed into B-36 Bruiser. 02261_ Destabilizing: System corrupted (+2). 02263_ ALERT: Hostiles spotted, dispatching reinforcements to Terminal M009. 02263_ Kicked B-36 Bruiser out of the way. 02263_ B-36 Bruiser destroyed. 02264_ Slammed into G-47 Trooper. 02264_ Carbon-fiber Leg destroyed. 02266_ Kicked G-47 Trooper out of the way. 02268_ Slammed into G-34 Mercenary. 02273_ Carbon-fiber Leg destroyed. 02273_ Slammed into G-34 Mercenary. Map ----- +----------------------------------------------------+ | ??# ??????????????????????????????????? | | ### #??????????????????????????????????? | | #??? ??????????????????????????????? | | #??????????????????????????????????? | | ! #??????????????????#???????????????? | | #??????????????????????????????????? | | #??????????????????????????????????? | | """ """ #??????????? ????????????????????? | | """ """ #??? ?????? !??????????#???????? | | "" """ #?????????# ???????????#???????? | | #???????? # ???????????????????? | | #?????????#% ???????????????????? | | #?????????# ??????########??????? | | #########+#####???????# #????#?# "T" #??????? | | #???# #? ?????# #??????# #?#????? | | #???# """ #??? ???+ #??????# """ #??????? | | #???# """"" #?? ????# #??????# """ #???#??? | | #???# """"" =#? ?????# #??????# """ #??????? | | ##??# """"" ######### ##?????# #??????# | | # #???# """ # # ##########+########## | | # #???# # #g%% u | | # ###?# # """!%+%% = | | #?###/####### """ %#%gY % | | ##### #?????# """ #%% ########+########+### | | #??#??# ##% ##???????? ???# | | #### #?????# "" ##@g #??????????????# | | ##?# #?????# S"" ## #???????? ?????# | | #+###?## ##?#??# "" ##a #????#?????????# | | ?????#?# *#?????# ## #??#???????????# | | ?????### %#?????######### % #????????""????# | | ???????# [#?############# ##??????????? ?####### | | ???????# %#?# ## #??##????????#??#???? | | ???#??# #?# ##Yu #???????? ??????????? | | ???????# ### /%% #??????#????????????? | | ???????# # == ## #???????????????????? | | ?#????## [+%% = ## #???????????????????? | | ??????## #* ########???????????????????? | | ??????## # #?##??#????????????????????? | | ?????### # #??????????????????????????? | | ? ????## ###########???#??????????????????????? | | ??????## ###???????????????????????#??????????? | | ??????## # ???#???????? ?????????????????????? | | ???????# # """ ????????? ??????#??????????????? | | ???????# # """ ???????????????????????????????? | | ???????# +?""" ? ???? ????????????????????????? | | ???????# #?? ????????????????????????????????? | | ???????# #????????????????????????????????????? | | ???????# #????????????????????????????????????? | | ??????? ??????#?????????????????????????????? | | ??????? ????????????????????????????????????? | +----------------------------------------------------+ Best States ------------- Heat Dissipation 28 Energy Generation 12 Energy Capacity 265 Matter Stores 300 Matter Capacity 300 Sight Range 16 Robot Scan Range 10 Terrain Scan Range 14 Terrain Scan Density 10 Resistance: EX 25 Evasion (%) 40 Recoil Reduction 2 Item Schematics ----------------- None Robot Schematics ------------------ None Fabricated ------------ Nothing Alien Tech Used ----------------- None Achievements -------------- None Challenges ------------ None Game ------ Seed AccelerationNullStorm Manual? 0 Play Time 00:29:55 Cumulative 6.6 hours Start 2021.07.13 @ 07:17:21 End 2021.07.13 @ 07:44:28 Sessions 1 Manual Loads 0 Difficulty Rogue Special Mode None Game No. 6 Rogue 6 Adventurer 0 Explorer 0 Win Type - Total 0 Types 0/0/0/0/0/0/0/0/0 Lore% 4 Gallery% 8 Achievement% 8 Wizard Run 0 Options --------- ASCII 0 Keyboard 0 Movement Mouse Keybinds 0 Fullscreen 2 Font 18/Terminus Map View 76x50 Tactical HUD 1 Map Filters NONE Filters NONE Steam 1 RUN: 0f7ce352-623a-4dbd-b19e-d765ea4b805f